bitfinex/quotes_SOLUSD_20241021
["timestamp","ask_amount","ask_price","bid_price","bid_amount"]
[1729469936475,0.1,169.78,169.65,1.79690318]
[1729469936677,29.08309955,169.79,169.65,1.79690318]
[1729469936867,29.08309955,169.79,169.66,1.79690318]
[1729469937067,29.08309955,169.79,169.67,1.79690318]
[1729469937273,29.08309955,169.79,169.68,1.79690318]
[1729469937481,29.18309955,169.79,169.69,1.79690318]
[1729469937780,29.18309955,169.79,169.7,1.79690318]
[1729469937990,29.08309955,169.79,169.64,1.02294562]
[1729469938171,29.08309955,169.79,169.65,1.79634119]
[1729469938376,29.08309955,169.79,169.66,1.79634119]
[1729469938688,29.08309955,169.79,169.67,1.79634119]
[1729469938863,22.93088722,169.79,169.68,1.79634119]
[1729469939064,22.93088722,169.79,169.69,1.79634119]
[1729469939282,22.93088722,169.79,169.7,1.79634119]
[1729469939465,22.93088722,169.79,169.71,1.79634119]
[1729469939776,22.93088722,169.79,169.72,1.80137964]
[1729469939967,22.93088722,169.79,169.65,23.776884]
[1729469940170,22.93088722,169.79,169.66,21.80125912]
[1729469940365,22.93088722,169.79,169.67,1.80125912]
[1729469942271,22.93088722,169.79,169.71,20.0]
[1729469942577,22.93088722,169.79,169.72,1.80125912]
[1729469942974,22.93088722,169.79,169.73,1.80125912]
[1729469943163,22.93088722,169.79,169.68,20.0]
[1729469943362,22.93088722,169.79,169.69,1.80060605]
[1729469944088,22.93088722,169.79,169.7,1.80027737]
[1729469944264,22.93088722,169.79,169.69,1.80027737]
[1729469944465,22.93088722,169.79,169.7,1.80027737]
[1729469944660,22.93088722,169.79,169.71,1.80027737]
[1729469944871,22.93088722,169.79,169.72,1.80027737]
[1729469945075,22.93088722,169.79,169.73,1.80027737]
[1729469945373,22.93088722,169.79,169.74,1.80027737]
[1729469945581,22.93088722,169.79,169.68,20.0]
[1729469945772,22.93088722,169.79,169.69,1.80066695]
[1729469946576,22.93088722,169.79,169.7,1.80066695]
[1729469946779,22.93088722,169.79,169.71,1.80066695]
[1729469946985,22.93088722,169.79,169.72,1.80066695]
[1729469947290,0.1,169.78,169.64,1.02294562]
[1729469947484,0.2,169.78,169.65,1.8013197]
[1729469947971,0.1,169.77,169.65,1.8013197]
[1729469948291,0.1,169.76,169.65,1.8013197]
[1729469949700,29.28325744,169.79,169.65,1.8013197]
[1729469949989,29.18325744,169.79,169.65,1.8013197]
[1729469950188,23.03088722,169.79,169.65,1.8013197]
[1729469950392,22.93088722,169.79,169.65,1.8013197]
[1729469950588,23.13088722,169.79,169.65,1.8013197]
[1729469950781,23.03088722,169.79,169.65,1.8013197]
[1729469951393,22.93088722,169.79,169.65,1.8013197]
[1729469952071,22.93088722,169.79,169.67,20.0]
[1729469952274,22.93088722,169.79,169.68,1.8013197]
[1729469953579,0.88278722,169.79,169.72,20.0]
[1729469953787,0.88278722,169.79,169.73,1.8013197]
[1729469954491,0.88278722,169.79,169.74,1.8013197]
[1729469954710,0.88278722,169.79,169.75,1.8013197]
[1729469954908,0.88278722,169.79,169.76,1.8013197]
[1729469955205,0.88278722,169.79,169.71,20.0]
[1729469955401,0.88278722,169.79,169.72,1.80636205]
[1729469955581,0.88278722,169.79,169.73,1.80636205]
[1729469955908,0.88278722,169.79,169.74,1.80636205]
[1729469956096,0.88278722,169.79,169.75,1.80636205]
[1729469956403,0.88278722,169.79,169.76,1.80636205]
[1729469956606,0.88278722,169.79,169.71,23.776884]
[1729469956810,0.88278722,169.79,169.72,21.80663065]
[1729469956986,21.8303,169.83,169.74,23.776884]
[1729469957197,23.93157,169.88,169.77,20.0]
[1729469957492,23.93157,169.88,169.78,1.80663065]
[1729469957801,23.93157,169.88,169.72,0.1]
[1729469957802,23.93157,169.88,169.79,1.80568733]
[1729469957976,15.9769018,170.0,169.8,1.80533534]
[1729469957977,0.1,169.97,169.8,1.80533534]
[1729469958311,0.1,169.96,169.81,1.80533534]
[1729469958509,6.24402356,169.97,169.82,1.80533534]
[1729469958805,7.12720381,169.97,169.82,1.80533534]
[1729469958978,7.12720381,169.97,169.83,1.80533534]
[1729469959177,7.12720381,169.97,169.84,1.80533534]
[1729469959399,0.2,169.96,169.78,20.0]
[1729469959613,23.0493,169.95,169.79,1.80504404]
[1729469959814,23.0493,169.95,169.81,20.0]
[1729469959984,23.0493,169.95,169.82,1.80504404]
[1729469961896,23.0493,169.95,169.61,17.90176074]
[1729469961897,0.1,169.92,169.83,1.80504404]
[1729469962200,0.2,169.92,169.72,0.1]
[1729469962391,0.2,169.92,169.76,1.80702063]
[1729469962704,0.1,169.92,169.76,1.80702063]
[1729469963395,0.1,169.92,169.76,21.80702063]
[1729469963600,0.1,169.92,169.77,1.80702063]
[1729469964115,6.6121,169.9,169.77,1.80702063]
[1729469965009,6.7121,169.9,169.77,1.80702063]
[1729469965194,6.7121,169.9,169.72,20.0]
[1729469965195,0.1,169.89,169.72,20.0]
[1729469965396,0.1,169.88,169.73,1.80786446]
[1729469965609,0.1,169.88,169.72,1.80786446]
[1729469965793,0.1,169.88,169.71,10.8342]
[1729469965794,17.18499443,169.87,169.73,1.80786446]
[1729469965993,17.18499443,169.87,169.74,1.80786446]
[1729469966195,17.18499443,169.87,169.75,1.80786446]
[1729469966496,17.08499443,169.87,169.76,1.80786446]
[1729469966701,17.08499443,169.87,169.77,1.80786446]
[1729469966911,17.08499443,169.87,169.78,1.80786446]
[1729469967210,17.08499443,169.87,169.79,1.80786446]
[1729469967509,17.08499443,169.87,169.71,10.9342]
[1729469967510,17.08499443,169.87,169.8,1.80786446]
[1729469967715,17.08499443,169.87,169.75,20.0]
[1729469967894,17.08499443,169.87,169.76,1.80926641]
[1729469968288,17.08499443,169.87,169.75,20.0]
[1729469968712,17.08499443,169.87,169.76,1.80962651]
[1729469969920,17.08499443,169.87,169.78,20.0]
[1729469970092,17.08499443,169.87,169.79,1.80962651]
[1729469970794,17.08499443,169.87,169.8,1.80962651]
[1729469970991,0.88359443,169.87,169.81,1.80962651]
[1729469971323,18.27655746,169.94,169.82,1.80962651]
[1729469971491,6.2606,169.94,169.84,20.0]
[1729469971690,0.88318025,169.97,169.84,20.0]
[1729469971890,0.88318025,169.97,169.85,1.80610546]
[1729469972206,0.88318025,169.97,169.86,1.80610546]
[1729469972512,0.88318025,169.97,169.87,1.80610546]
[1729469972710,0.88318025,169.97,169.88,1.80610546]
[1729469972918,0.88318025,169.97,169.89,1.80610546]
[1729469973104,0.88318025,169.97,169.9,1.80610546]
[1729469973304,0.88318025,169.97,169.81,20.0]
[1729469973613,0.88318025,169.97,169.82,1.80435437]
[1729469974298,23.776884,169.94,169.82,1.80435437]
[1729469974503,23.776884,169.92,169.83,1.80435437]
[1729469974718,23.776884,169.92,169.75,14.7137]
[1729469974899,23.776884,169.92,169.76,1.80571107]
[1729469975093,23.776884,169.92,169.77,1.80571107]
[1729469975403,22.776884,169.92,169.78,1.80571107]
[1729469975589,22.776884,169.92,169.79,1.80571107]
[1729469975792,22.776884,169.92,169.8,1.80639263]
[1729469975993,22.776884,169.92,169.81,1.80639263]
[1729469976194,22.776884,169.92,169.82,1.80639263]
[1729469976400,22.776884,169.92,169.75,14.7137]
[1729469976825,22.776884,169.92,169.76,1.80682661]
[1729469977524,6.5271,169.93,169.77,1.80682661]
[1729469977687,6.5271,169.93,169.76,9.09043942]
[1729469977890,6.5271,169.93,169.77,1.80682661]
[1729469978117,6.5271,169.93,169.78,1.80682661]
[1729469978301,6.5271,169.93,169.79,1.80682661]
[1729469978496,6.5271,169.93,169.8,1.80682661]
[1729469978702,6.5271,169.93,169.81,1.80682661]
[1729469978901,23.776884,169.92,169.82,1.80682661]
[1729469979116,23.776884,169.92,169.76,20.0]
[1729469979315,23.776884,169.92,169.77,1.80647561]
[1729469979525,23.776884,169.92,169.78,1.80647561]
[1729469979823,24.63246267,169.92,169.79,1.80647561]
[1729469980019,24.63246267,169.92,169.8,1.80647561]
[1729469980198,24.63246267,169.92,169.81,1.80647561]
[1729469980397,24.63246267,169.92,169.82,1.80647561]
[1729469980604,23.63246267,169.92,169.83,1.80647561]
[1729469980815,23.63246267,169.92,169.76,20.0]
[1729469981011,23.63246267,169.92,169.77,1.80694444]
[1729469981213,23.63246267,169.92,169.78,1.80694444]
[1729469981411,0.1,169.9,169.79,1.80694444]
[1729469981602,0.1,169.9,169.72,1.02159371]
[1729469981803,0.1,169.9,169.73,1.80835144]
[1729469982004,16.4216,169.89,169.73,1.80835144]
[1729469982202,6.5271,169.88,169.73,1.80835144]
[1729469982410,11.06874476,169.87,169.73,1.80835144]
[1729469982720,23.776884,169.87,169.74,1.80900021]
[1729469982923,23.776884,169.87,169.75,1.80900021]
[1729469983118,24.63269477,169.87,169.76,1.80900021]
[1729469983310,24.63269477,169.87,169.77,1.80900021]
[1729469983510,24.63269477,169.87,169.72,1.02159371]
[1729469983713,24.73269477,169.87,169.73,1.80968614]
[1729469983913,23.776884,169.84,169.73,1.80968614]
[1729469984304,23.776884,169.82,169.73,1.80968614]
[1729469984622,23.776884,169.84,169.73,1.80968614]
[1729469984823,23.776884,169.84,169.74,1.80968614]
[1729469985027,23.776884,169.84,169.7,1.02260143]
[1729469985210,23.776884,169.84,169.71,1.81057806]
[1729469985407,5.9882,169.83,169.72,1.81057806]
[1729469985618,23.776884,169.8,169.63,2.5606]
[1729469985797,23.776884,169.78,169.64,1.81072314]
[1729469986002,23.776884,169.78,169.65,1.81072314]
[1729469986314,23.776884,169.78,169.64,1.02282364]
[1729469986625,23.63302943,169.78,169.65,1.81054615]
[1729469986844,23.63302943,169.78,169.66,1.81054615]
[1729469987024,23.63302943,169.78,169.67,1.81054615]
[1729469987197,23.63302943,169.78,169.64,3.58342364]
[1729469987198,23.63302943,169.78,169.68,1.81054615]
[1729469987401,23.63302943,169.78,169.69,1.81054615]
[1729469987707,23.63302943,169.78,169.7,1.81054615]
[1729469987912,23.63302943,169.78,169.71,1.81054615]
[1729469988108,23.63302943,169.78,169.72,1.81054615]
[1729469988304,23.63302943,169.78,169.73,1.81054615]
[1729469988504,23.63302943,169.78,169.64,21.02282364]
[1729469988724,23.63302943,169.78,169.65,1.81068684]
[1729469989026,23.63302943,169.78,169.66,1.81068684]
[1729469989232,23.63302943,169.78,169.67,1.81068684]
[1729469989526,23.63302943,169.78,169.68,1.81068684]
[1729469989527,23.776884,169.76,169.68,1.81068684]
[1729469989747,23.63302943,169.78,169.69,1.81068684]
[1729469989903,23.63302943,169.78,169.65,1.81068684]
[1729469990098,23.63302943,169.78,169.66,1.81068684]
[1729469990325,23.63302943,169.78,169.67,1.81068684]
[1729469990504,23.63302943,169.78,169.68,1.81068684]
[1729469990705,23.63302943,169.78,169.64,21.02282364]
[1729469990706,23.63302943,169.78,169.69,1.81068684]
[1729469991009,23.63302943,169.78,169.7,1.81068684]
[1729469991218,23.63302943,169.78,169.64,1.02282364]
[1729469991421,23.63302943,169.78,169.65,1.81091721]
[1729469991723,22.63302943,169.78,169.65,1.81091721]
[1729469992405,22.63302943,169.78,169.64,21.02282364]
[1729469992406,22.63302943,169.78,169.66,1.81091721]
[1729469992725,22.63302943,169.78,169.67,1.81091721]
[1729469992937,0.85614543,169.78,169.68,1.81091721]
[1729469993226,0.85614543,169.78,169.69,1.81091721]
[1729469993430,0.85614543,169.78,169.7,1.80834507]
[1729469993626,0.85614543,169.78,169.71,1.80834507]
[1729469993834,0.85614543,169.78,169.72,1.80834507]
[1729469994002,0.85614543,169.78,169.73,1.80834507]
[1729469994353,0.85614543,169.78,169.74,1.80834507]
[1729469994534,0.85614543,169.78,169.75,1.80834507]
[1729469994706,0.85614543,169.78,169.64,1.02282364]
[1729469995029,0.85614543,169.78,169.65,1.80803454]
[1729469995227,0.85614543,169.78,169.66,1.80803454]
[1729469995429,0.85614543,169.78,169.67,1.80803454]
[1729469995636,0.85614543,169.78,169.68,1.80803454]
[1729469995811,23.776884,169.77,169.69,1.80803454]
[1729469996024,23.776884,169.77,169.7,1.80803454]
[1729469996327,23.776884,169.77,169.71,1.80803454]
[1729469996523,23.776884,169.77,169.72,1.80803454]
[1729469996720,23.776884,169.77,169.73,1.80742621]
[1729469996939,23.776884,169.77,169.74,1.80742621]
[1729469997230,23.776884,169.77,169.64,21.02282364]
[1729469997525,23.776884,169.77,169.65,1.80832451]
[1729469997730,23.776884,169.77,169.66,1.80832451]
[1729469997935,23.776884,169.77,169.67,1.80832451]
[1729469998228,23.776884,169.77,169.64,1.02282364]
[1729469998437,23.776884,169.77,169.68,1.80844122]
[1729469998619,23.776884,169.77,169.64,21.02282364]
[1729469998620,23.776884,169.77,169.69,1.80844122]
[1729469998815,23.776884,169.77,169.7,1.80844122]
[1729469999026,23.776884,169.77,169.71,1.80844122]
[1729469999345,23.776884,169.77,169.72,1.80844122]
[1729469999506,23.776884,169.75,169.64,1.02282364]
[1729469999831,22.1164,169.74,169.65,1.80826231]
[1729470000015,23.776884,169.71,169.56,6.14460497]
[1729470000211,23.776884,169.71,169.57,1.81047615]
[1729470000431,23.776884,169.71,169.58,1.81047615]
[1729470000628,6.2648,169.72,169.51,0.1]
[1729470000629,23.776884,169.69,169.51,0.1]
[1729470000829,23.776884,169.69,169.59,1.81063983]
[1729470001018,24.61188384,169.69,169.6,1.81063983]
[1729470001219,24.61188384,169.69,169.61,1.81063983]
[1729470001421,24.61188384,169.69,169.62,1.81063983]
[1729470001626,0.83499984,169.69,169.63,1.81063983]
[1729470001826,0.83499984,169.69,169.64,1.81063983]
[1729470002011,0.83499984,169.69,169.65,1.81063983]
[1729470002205,0.83499984,169.69,169.66,1.81063983]
[1729470002523,0.83499984,169.69,169.67,1.81063983]
[1729470002829,16.1923,169.75,169.68,1.81063983]
[1729470003024,16.1923,169.75,169.69,1.81063983]
[1729470003221,16.1923,169.75,169.6,20.1]
[1729470003531,16.1923,169.75,169.61,1.80816281]
[1729470003743,11.36596847,169.74,169.62,1.80816281]
[1729470004032,23.776884,169.72,169.63,1.80816281]
[1729470004368,24.61161648,169.72,169.64,1.80816281]
[1729470004521,24.61161648,169.72,169.65,1.80816281]
[1729470004828,24.61161648,169.72,169.59,14.7137]
[1729470005128,24.61161648,169.72,169.6,1.80882264]
[1729470005307,24.61161648,169.72,169.54,14.8137]
[1729470005308,23.776884,169.7,169.61,1.80882264]
[1729470005508,23.776884,169.7,169.54,14.7137]
[1729470005509,23.776884,169.7,169.62,1.80882264]
[1729470005720,23.776884,169.7,169.63,1.80882264]
[1729470005937,23.776884,169.7,169.54,14.7137]
[1729470006131,23.776884,169.7,169.55,1.80834819]
[1729470006345,23.776884,169.68,169.56,1.80834819]
[1729470006544,23.776884,169.68,169.57,1.80834819]
[1729470006730,23.776884,169.68,169.53,1.02366673]
[1729470006731,23.776884,169.68,169.58,1.80834819]
[1729470007061,23.776884,169.68,169.59,1.80834819]
[1729470007347,23.776884,169.68,169.6,1.80834819]
[1729470007543,23.776884,169.68,169.61,1.80834819]
[1729470007723,23.776884,169.68,169.53,1.02366673]
[1729470007923,23.776884,169.68,169.54,1.80740084]
[1729470008119,23.776884,169.68,169.55,1.80740084]
[1729470008431,16.5938,169.69,169.56,1.80740084]
[1729470008729,16.5938,169.69,169.57,1.80740084]
[1729470008934,16.5938,169.69,169.53,1.12366673]
[1729470008935,16.5938,169.69,169.58,1.80740084]
[1729470009138,6.2513,169.71,169.59,1.80740084]
[1729470009444,0.83473248,169.72,169.6,24.36800084]
[1729470009639,0.83473248,169.72,169.61,1.80740084]
[1729470010238,0.83473248,169.72,169.62,1.80740084]
[1729470010439,0.83473248,169.72,169.63,1.80503839]
[1729470010737,0.83473248,169.72,169.64,1.80503839]
[1729470010930,0.83473248,169.72,169.61,1.80503839]
[1729470011131,0.83473248,169.72,169.62,1.80503839]
[1729470011335,0.83473248,169.72,169.63,1.80503839]
[1729470011537,0.83473248,169.72,169.64,1.80503839]
[1729470011742,0.83473248,169.72,169.65,1.80503839]
[1729470011946,0.83473248,169.72,169.66,1.80503839]
[1729470012258,0.83473248,169.72,169.67,1.80503839]
[1729470012460,0.83473248,169.72,169.68,1.80503839]
[1729470012659,0.83473248,169.72,169.6,22.5606]
[1729470012660,0.83473248,169.72,169.69,1.80503839]
[1729470012825,0.83473248,169.72,169.6,22.5606]
[1729470013027,0.83473248,169.72,169.61,1.80537326]
[1729470013248,0.83473248,169.72,169.61,21.80537326]
[1729470013441,0.83473248,169.72,169.62,21.80537326]
[1729470013641,0.83473248,169.72,169.63,1.80537326]
[1729470014035,0.83473248,169.72,169.6,2.5606]
[1729470014036,0.83473248,169.72,169.64,1.80444615]
[1729470014233,0.83473248,169.72,169.65,1.80444615]
[1729470014468,0.83473248,169.72,169.66,1.80444615]
[1729470014750,0.83473248,169.72,169.67,1.80444615]
[1729470014958,0.83473248,169.72,169.6,22.5606]
[1729470015248,0.83473248,169.72,169.61,1.80358111]
[1729470016444,0.83473248,169.72,169.62,1.80358111]
[1729470016750,23.776884,169.71,169.63,1.80358111]
[1729470016931,23.776884,169.71,169.53,1.12366673]
[1729470017132,6.3642,169.7,169.54,1.80455108]
[1729470017329,6.3642,169.7,169.53,1.02366673]
[1729470017330,23.776884,169.67,169.55,1.80455108]
[1729470017640,30.141084,169.64,169.56,1.80455108]
[1729470017833,23.776884,169.63,169.53,1.02366673]
[1729470018159,23.776884,169.63,169.54,1.80529313]
[1729470019848,24.61212445,169.63,169.54,1.80529313]
[1729470021249,24.61212445,169.63,169.55,1.80529313]
[1729470021561,24.61212445,169.63,169.53,1.0235781]
[1729470021758,24.61212445,169.63,169.54,1.80336263]
[1729470023651,0.83524045,169.63,169.54,1.80336263]
[1729470024755,0.83524045,169.63,169.55,1.79977271]
[1729470024944,0.83524045,169.63,169.56,1.79977271]
[1729470025258,0.83524045,169.63,169.57,1.79977271]
[1729470025562,0.83524045,169.63,169.58,1.79977271]
[1729470025741,0.83524045,169.63,169.53,1.0235781]
[1729470025950,0.83524045,169.63,169.54,1.89925175]
[1729470026250,0.83524045,169.63,169.55,20.0]
[1729470026557,0.83524045,169.63,169.56,21.79925175]
[1729470026854,0.83524045,169.63,169.57,1.79925175]
[1729470027440,0.83524045,169.63,169.58,1.79925175]
[1729470027650,0.83524045,169.63,169.59,1.79925175]
[1729470027854,0.83524045,169.63,169.53,21.0235781]
[1729470028182,0.83529106,169.67,169.6,0.1]
[1729470028183,0.46259106,169.67,169.6,0.1]
[1729470028469,9.106e-05,169.67,169.62,20.0]
[1729470028770,9.106e-05,169.67,169.63,1.79684491]
[1729470028944,21.9119,169.76,169.64,20.0]
[1729470029266,21.9119,169.76,169.65,1.79684491]
[1729470029769,21.9119,169.76,169.66,20.0]
[1729470029962,22.76915781,169.76,169.67,21.79684491]
[1729470030145,22.76915781,169.76,169.67,20.0]
[1729470030550,23.776884,169.74,169.59,12.1531]
[1729470030747,23.776884,169.75,169.6,1.7960144]
[1729470031880,23.776884,169.75,169.61,1.7960144]
[1729470032074,23.776884,169.75,169.62,1.7960144]
[1729470032373,23.776884,169.75,169.56,2.5606]
[1729470032374,23.776884,169.75,169.63,1.7960144]
[1729470032669,23.776884,169.75,169.56,2.5606]
[1729470032670,23.776884,169.75,169.56,22.5606]
[1729470032851,23.776884,169.75,169.57,1.79852841]
[1729470033250,23.776884,169.75,169.59,20.0]
[1729470033568,23.776884,169.75,169.6,1.79852841]
[1729470034384,11.59981909,169.74,169.61,20.0]
[1729470034666,23.776884,169.75,169.62,1.79852841]
[1729470034880,23.776884,169.75,169.56,2.5606]
[1729470034881,23.776884,169.75,169.63,1.79852841]
[1729470035166,23.776884,169.75,169.56,2.6606]
[1729470035167,23.776884,169.75,169.64,1.80118747]
[1729470035372,23.776884,169.75,169.56,2.6606]
[1729470035577,23.776884,169.75,169.57,8.3562224]
[1729470035753,23.776884,169.75,169.58,21.80133181]
[1729470035954,23.776884,169.75,169.59,1.80133181]
[1729470036566,16.4026,169.71,169.59,1.80133181]
[1729470036766,24.63449619,169.7,169.59,1.80133181]
[1729470036975,24.63449619,169.7,169.53,1.0235781]
[1729470037175,24.63449619,169.7,169.54,1.80273617]
[1729470037477,6.3753,169.69,169.54,1.80273617]
[1729470037661,23.776884,169.68,169.54,1.80273617]
[1729470038576,23.776884,169.68,169.55,1.80407371]
[1729470038952,23.776884,169.68,169.56,1.80407371]
[1729470039154,23.776884,169.68,169.57,1.80407371]
[1729470039454,23.776884,169.68,169.58,1.80407371]
[1729470039650,6.3753,169.69,169.55,20.0]
[1729470039651,6.3753,169.69,169.59,1.80407371]
[1729470039856,6.3753,169.69,169.6,1.80407371]
[1729470040072,6.3753,169.69,169.61,1.80407371]
[1729470040268,6.3753,169.69,169.62,1.80407371]
[1729470040470,6.3753,169.69,169.63,1.80407371]
[1729470040660,6.3753,169.69,169.57,20.0]
[1729470040874,6.3753,169.69,169.58,1.80665975]
[1729470041252,23.776884,169.68,169.58,1.80665975]
[1729470041884,23.776884,169.68,169.59,1.80665975]
[1729470042049,23.776884,169.68,169.6,1.80665975]
[1729470042253,23.776884,169.68,169.55,1.02342244]
[1729470042465,23.776884,169.68,169.56,1.80896232]
[1729470043860,23.776884,169.68,169.57,1.80896232]
[1729470044052,23.776884,169.68,169.58,1.80896232]
[1729470044258,23.776884,169.68,169.59,1.80896232]
[1729470044585,6.3753,169.69,169.6,1.80896232]
[1729470044755,6.3753,169.69,169.61,1.80896232]
[1729470045082,6.3753,169.69,169.62,1.80896232]
[1729470045252,6.3753,169.69,169.63,1.80896232]
[1729470045459,6.3753,169.69,169.64,1.80896232]
[1729470045655,6.3753,169.69,169.53,21.123542]
[1729470045866,6.3753,169.69,169.54,1.30911944]
[1729470046177,6.3753,169.69,169.53,21.023542]
[1729470046959,6.3753,169.69,169.53,1.023542]
[1729470046960,23.776884,169.68,169.53,1.023542]
[1729470047756,16.0704,169.67,169.53,1.023542]
[1729470047956,23.776884,169.66,169.52,12.1531]
[1729470048167,23.776884,169.66,169.5,6.76009851]
[1729470048372,23.776884,169.66,169.5,0.6319043]
[1729470048562,23.776884,169.64,169.51,6.55489059]
[1729470048760,16.0704,169.67,169.51,6.55489059]
[1729470048976,23.776884,169.66,169.51,6.55489059]
[1729470049567,23.776884,169.66,169.52,20.0]
[1729470049774,23.776884,169.66,169.51,20.0]
[1729470050262,23.776884,169.66,169.5,0.6319043]
[1729470051078,23.776884,169.66,169.5,0.7319043]
[1729470051267,16.0704,169.67,169.54,20.0]
[1729470051467,16.0704,169.67,169.56,20.0]
[1729470052658,16.0704,169.67,169.52,20.0]
[1729470054970,16.95468605,169.67,169.53,4.76278271]
[1729470055183,16.95468605,169.67,169.52,20.0]
[1729470055682,23.776884,169.66,169.52,20.0]
[1729470057278,23.776884,169.66,169.5,0.6319043]
[1729470057469,16.95468605,169.67,169.5,0.6319043]
[1729470057470,23.776884,169.64,169.5,0.6319043]
[1729470057885,23.776884,169.64,169.51,20.0]
[1729470058084,24.66137722,169.64,169.52,21.81198262]
[1729470058268,24.66137722,169.64,169.53,1.81198262]
[1729470058475,24.66137722,169.64,169.54,1.81198262]
[1729470058784,0.88449322,169.64,169.55,1.81198262]
[1729470058965,0.88449322,169.64,169.56,1.81198262]
[1729470059293,0.88449322,169.64,169.57,1.81198262]
[1729470059462,0.88449322,169.64,169.58,1.81198262]
[1729470059668,0.88449322,169.64,169.53,20.0]
[1729470059970,0.88449322,169.64,169.54,1.81203669]
[1729470060182,0.88449322,169.64,169.55,1.81203669]
[1729470060364,16.95468605,169.67,169.56,1.81203669]
[1729470060573,11.72950823,169.66,169.57,1.81203669]
[1729470060782,16.95468605,169.67,169.58,1.81203669]
[1729470061082,0.88428605,169.67,169.59,1.81203669]
[1729470061295,0.88428605,169.67,169.6,1.81203669]
[1729470061599,0.88428605,169.67,169.61,1.81203669]
[1729470061766,0.88428605,169.67,169.62,1.81203669]
[1729470062089,0.88428605,169.67,169.63,1.81203669]
[1729470062385,0.88428605,169.67,169.64,1.81203669]
[1729470062593,0.88428605,169.67,169.65,1.81203669]
[1729470062770,6.3093,169.66,169.53,5.68180817]
[1729470063083,6.3093,169.66,169.55,1.81223493]
[1729470063084,17.11592048,169.66,169.55,1.81223493]
[1729470063390,15.4564,169.65,169.56,1.81223493]
[1729470063572,15.4564,169.65,169.57,1.81223493]
[1729470063768,15.4564,169.65,169.58,1.81223493]
[1729470063966,15.4564,169.65,169.59,1.81223493]
[1729470064286,15.4564,169.65,169.5,7.18679489]
[1729470064287,23.776884,169.64,169.6,1.81223493]
[1729470064493,23.776884,169.64,169.61,1.81223493]
[1729470064696,24.66143347,169.64,169.5,2.9904653]
[1729470064872,24.66143347,169.64,169.51,1.81407398]
[1729470065072,24.66143347,169.64,169.52,1.81407398]
[1729470065294,24.66143347,169.64,169.53,1.81407398]
[1729470065585,24.66143347,169.64,169.5,2.9904653]
[1729470065586,24.66143347,169.64,169.54,1.81429589]
[1729470065786,24.66143347,169.64,169.55,1.81429589]
[1729470065988,24.66143347,169.64,169.56,1.81429589]
[1729470066182,24.66143347,169.64,169.57,1.81429589]
[1729470066364,24.66143347,169.64,169.58,1.81429589]
[1729470066570,24.66143347,169.64,169.5,0.6319043]
[1729470066571,24.66143347,169.64,169.59,1.81429589]
[1729470066769,24.66143347,169.64,169.5,0.6319043]
[1729470066964,24.66143347,169.64,169.51,1.81399637]
[1729470067187,24.66143347,169.64,169.52,1.81399637]
[1729470067492,0.88454947,169.64,169.53,21.81399637]
[1729470067785,0.88454947,169.64,169.54,1.81399637]
[1729470067988,0.88454947,169.64,169.55,1.81399637]
[1729470068296,0.88454947,169.64,169.56,1.81399637]
[1729470068466,0.88454947,169.64,169.57,1.81399637]
[1729470068669,0.88454947,169.64,169.58,1.81399637]
[1729470068882,0.2,169.72,169.5,0.6319043]
[1729470068883,6.198,169.79,169.61,20.1]
[1729470069069,6.198,169.79,169.63,20.0]
[1729470069277,6.198,169.79,169.65,20.0]
[1729470069597,6.198,169.79,169.66,1.81028116]
[1729470069775,5.99,169.78,169.67,1.81124205]
[1729470069978,5.99,169.78,169.68,1.81124205]
[1729470070193,6.198,169.79,169.69,1.81124205]
[1729470070368,6.198,169.79,169.7,1.81124205]
[1729470070568,6.398,169.79,169.61,20.0]
[1729470070796,0.1,169.78,169.62,1.8114725]
[1729470070972,5.8914,169.74,169.63,1.8114725]
[1729470071172,5.9917,169.73,169.64,1.8114725]
[1729470071389,0.1,169.74,169.65,1.8114725]
[1729470071390,23.776884,169.72,169.65,1.8114725]
[1729470071589,23.776884,169.72,169.55,7.494652]
[1729470071904,23.776884,169.72,169.56,9.50351985]
[1729470072079,23.776884,169.72,169.57,9.30752989]
[1729470072397,23.776884,169.72,169.58,21.81287789]
[1729470072571,23.776884,169.72,169.59,1.81287789]
[1729470072766,23.776884,169.7,169.6,1.81287789]
[1729470072973,23.776884,169.72,169.61,1.80475141]
[1729470073200,23.776884,169.72,169.62,1.80475141]
[1729470073497,23.776884,169.72,169.63,1.80475141]
[1729470073682,23.776884,169.72,169.64,1.80475141]
[1729470073873,23.776884,169.72,169.65,1.80475141]
[1729470074079,23.776884,169.72,169.66,1.80475141]